bitfinex-derivatives/quotes_SOLF0:USTF0_20241015
["timestamp","ask_amount","ask_price","bid_price","bid_amount"]
[1728971225464,15.57,154.42,154.33,5.12]
[1728971225659,3.2399,154.4,154.33,5.12]
[1728971225858,15.57,154.42,154.33,5.12]
[1728971226058,0.97524573,154.41,154.33,8.34895711]
[1728971226659,3.2405,154.37,154.33,8.34895711]
[1728971227257,3.2405,154.37,154.33,11.59015711]
[1728971227660,3.2396,154.41,154.36,3.2405]
[1728971227964,2.86712,154.43,154.36,15.57]
[1728971228368,3.2395,154.42,154.37,8.3602]
[1728971228758,2.86712,154.43,154.37,5.12]
[1728971230366,3.2394,154.42,154.38,3.2401]
[1728971230965,3.2394,154.42,154.37,5.12]
[1728971230966,2.86712,154.43,154.37,5.12]
[1728971231169,15.57,154.42,154.33,4.61835711]
[1728971231464,3.2405,154.37,154.33,8.34895711]
[1728971231859,15.57,154.4,154.32,15.57]
[1728971232171,3.2403,154.38,154.31,8.48662]
[1728971232367,15.57,154.4,154.31,8.48662]
[1728971232665,3.2413,154.33,154.31,0.12502]
[1728971232866,20.69,154.38,154.31,0.12502]
[1728971233062,15.57,154.36,154.31,0.12502]
[1728971233262,4.0003,154.37,154.31,0.12502]
[1728971233868,15.57,154.35,154.31,0.12502]
[1728971234367,5.12,154.34,154.31,0.12502]
[1728971234675,3.2414,154.32,154.31,0.12502]
[1728971236270,20.69,154.34,154.25,5.24502]
[1728971236471,3.2421,154.3,154.25,5.24502]
[1728971236970,3.2421,154.3,154.25,8.48792]
[1728971237675,20.69,154.34,154.25,8.48792]
[1728971239268,20.69,154.34,154.25,5.24502]
[1728971239665,9.18532,154.37,154.31,15.57]
[1728971239863,3.2407,154.36,154.31,18.8115]
[1728971240770,7.36582,154.37,154.32,3.2414]
[1728971240972,4.12532,154.37,154.31,15.57]
[1728971241568,3.2406,154.36,154.31,18.8115]
[1728971244372,3.2406,154.36,154.32,3.2413]
[1728971244876,3.2411,154.34,154.31,15.57]
[1728971245075,4.12532,154.37,154.29,5.06]
[1728971245378,0.97399746,154.36,154.29,5.06]
[1728971245579,3.2417,154.31,154.29,5.06]
[1728971245775,5.06,154.35,154.26,15.57]
[1728971245975,5.06,154.35,154.25,5.18502]
[1728971245976,3.2423,154.28,154.25,5.18502]
[1728971246775,3.2421,154.29,154.25,5.18502]
[1728971247981,15.57,154.33,154.25,5.18502]
[1728971248186,0.97373141,154.32,154.25,5.18502]
[1728971248780,3.2423,154.28,154.25,5.18502]
[1728971249975,3.2411,154.34,154.28,3.2421]
[1728971250179,0.97393162,154.33,154.26,15.57]
[1728971250479,5.06,154.35,154.26,20.63]
[1728971250672,5.06,154.35,154.26,8.3027]
[1728971251174,3.2418,154.31,154.26,8.3027]
[1728971252082,5.06,154.35,154.26,5.06]
[1728971252083,3.242,154.3,154.26,5.06]
[1728971252982,5.06,154.35,154.26,5.06]
[1728971253184,0.97421013,154.34,154.26,5.06]
[1728971253380,5.06,154.35,154.26,5.06]
[1728971253581,3.2416,154.32,154.27,3.2424]
[1728971254779,5.06,154.34,154.26,5.06]
[1728971254980,3.2422,154.29,154.25,0.12502]
[1728971255179,20.63,154.34,154.25,0.12502]
[1728971255377,5.06,154.34,154.25,0.12502]
[1728971256187,3.2416,154.32,154.27,3.2423]
[1728971256984,3.2416,154.32,154.25,0.12502]
[1728971256985,5.08,154.34,154.25,3.36772]
[1728971257185,20.65,154.34,154.25,3.36772]
[1728971258382,3.242,154.3,154.25,3.36772]
[1728971260589,20.65,154.34,154.25,3.36772]
[1728971260790,3.2421,154.29,154.25,3.36772]
[1728971262197,3.2421,154.29,154.26,3.2425]
[1728971262390,20.65,154.34,154.25,0.12502]
[1728971262593,3.2418,154.31,154.25,0.12502]
[1728971262896,3.2418,154.31,154.27,3.2424]
[1728971263190,3.2418,154.31,154.27,15.57]
[1728971263391,3.2418,154.31,154.28,3.2422]
[1728971263592,5.08,154.34,154.27,20.65]
[1728971265191,3.2415,154.32,154.27,23.8924]
[1728971267595,3.2415,154.32,154.27,20.65]
[1728971267795,3.2415,154.32,154.28,3.2422]
[1728971267990,3.2413,154.33,154.27,5.08]
[1728971268196,5.0,154.35,154.3,3.2418]
[1728971268397,5.0,154.35,154.28,15.57]
[1728971268701,3.2412,154.33,154.28,15.57]
[1728971269199,4.12532,154.37,154.27,5.08]
[1728971269200,2.80512,154.37,154.31,15.57]
[1728971269397,0.12502,154.37,154.31,18.84757509]
[1728971269592,0.12502,154.37,154.32,15.57]
[1728971269792,0.12502,154.37,154.34,3.241]
[1728971271201,0.12502,154.37,154.35,3.2408]
[1728971272297,0.12502,154.37,154.36,3.2406]
[1728971275403,0.12502,154.37,154.35,23.8107]
[1728971275905,0.12502,154.37,154.35,20.57]
[1728971276107,0.12502,154.43,154.36,15.57]
[1728971276701,0.12502,154.43,154.38,3.2401]
[1728971277398,3.2394,154.42,154.38,3.2401]
[1728971277700,0.12502,154.43,154.38,3.2401]
[1728971278405,3.36422,154.43,154.38,3.2401]
[1728971281304,3.2394,154.42,154.38,3.2401]
[1728971282005,0.12502,154.43,154.4,3.2397]
[1728971282203,0.12502,154.43,154.39,5.0]
[1728971282401,0.12502,154.43,154.4,15.57]
[1728971283306,0.12502,154.43,154.41,3.2394]
[1728971284505,70.02,154.54,154.4,15.57]
[1728971284506,5.0,154.54,154.42,15.57]
[1728971284707,2.6373,154.53,154.45,15.57]
[1728971284899,3.36302,154.49,154.45,15.57]
[1728971285102,0.12502,154.49,154.45,15.57]
[1728971285301,0.12502,154.49,154.43,20.57]
[1728971285508,3.2391,154.44,154.4,5.0]
[1728971286209,3.2391,154.44,154.4,8.28388932]
[1728971287610,1.3027,154.48,154.4,8.28388932]
[1728971287906,0.97452889,154.47,154.4,8.28388932]
[1728971288905,1.3027,154.48,154.4,5.0]
[1728971289112,1.2763,154.46,154.37,20.69502]
[1728971289413,6.2763,154.46,154.37,20.69502]
[1728971289608,5.0,154.46,154.37,20.69502]
[1728971289812,6.4063,154.47,154.39,15.57]
[1728971290011,0.97394219,154.46,154.39,18.7536213]
[1728971290817,3.2389,154.44,154.4,3.2397]
[1728971291018,6.4063,154.47,154.4,3.2397]
[1728971291218,0.9740326,154.46,154.4,3.2397]
[1728971291919,0.9740326,154.46,154.39,18.7536213]
[1728971292118,15.57,154.45,154.37,3.36532]
[1728971292311,0.9740326,154.44,154.37,3.36532]
[1728971292512,3.2395,154.42,154.38,3.2402]
[1728971292916,15.57,154.45,154.37,0.12502]
[1728971293118,0.97390803,154.44,154.37,0.12502]
[1728971293317,5.0,154.43,154.37,0.12502]
[1728971293714,20.57,154.43,154.37,0.12502]
[1728971294418,3.2401,154.39,154.37,0.12502]
[1728971294624,20.57,154.43,154.37,0.12502]
[1728971294822,3.2402,154.38,154.37,0.12502]
[1728971296421,3.2401,154.39,154.37,0.12502]
[1728971296621,2.6665,154.46,154.37,15.69502]
[1728971296825,5.0,154.45,154.37,15.69502]
[1728971297022,3.2394,154.42,154.37,18.93532]
[1728971298124,3.2394,154.42,154.37,15.69502]
[1728971298419,3.2392,154.43,154.38,3.2401]
[1728971298614,3.2392,154.43,154.39,15.57]
[1728971298819,2.6665,154.46,154.4,3.2397]
[1728971299015,0.97442152,154.45,154.39,15.57]
[1728971299213,3.2389,154.44,154.39,15.57]
[1728971299619,2.6665,154.46,154.39,15.57]
[1728971299620,3.2386,154.46,154.41,15.57]
[1728971299922,5.02,154.47,154.41,15.57]
[1728971300124,3.2389,154.45,154.41,15.57]
[1728971300319,3.2389,154.45,154.4,3.2397]
[1728971300715,5.02,154.47,154.39,15.57]
[1728971300918,3.2391,154.43,154.39,15.57]
[1728971301926,23.87140139,154.47,154.39,15.57]
[1728971302114,3.2394,154.42,154.39,15.57]
[1728971302314,20.59,154.47,154.39,15.57]
[1728971302526,0.97439112,154.46,154.39,15.57]
[1728971303321,3.2392,154.43,154.39,15.57]
[1728971303520,20.59,154.47,154.39,15.57]
[1728971303722,0.97477994,154.46,154.39,15.57]
[1728971304032,3.2393,154.43,154.39,15.57]
[1728971307527,3.2393,154.42,154.39,15.57]
[1728971308727,3.2398,154.4,154.37,15.69502]
[1728971308937,23.83703778,154.47,154.37,15.69502]
[1728971309233,0.97499939,154.46,154.37,15.69502]
[1728971309420,3.2397,154.41,154.37,18.93532]
[1728971310530,15.57,154.43,154.37,0.12502]
[1728971310730,3.63588095,154.42,154.37,0.12502]
[1728971310934,0.97488095,154.41,154.37,0.12502]
[1728971311230,3.2398,154.4,154.37,0.12502]
[1728971311542,2.661,154.42,154.37,0.12502]
[1728971311735,3.2402,154.38,154.37,0.12502]
[1728971312833,3.241,154.35,154.31,18.97259509]
[1728971313224,5.02,154.39,154.31,18.97259509]
[1728971313423,15.57,154.38,154.31,3.40259509]
[1728971313946,3.241,154.35,154.31,3.36662]
[1728971314429,15.57,154.4,154.31,18.99013231]
[1728971314632,5.02,154.4,154.33,18.8112]
[1728971315034,58.03303856,154.54,154.39,3.2399]
[1728971315035,3.2391,154.44,154.39,3.2399]
[1728971315234,3.2391,154.44,154.41,15.57]
[1728971316635,3.2388,154.45,154.41,15.57]
[1728971317433,3.2385,154.47,154.41,18.8095]
[1728971317632,5.14502,154.49,154.41,15.57]
[1728971317936,8.40988796,154.49,154.41,15.57]
[1728971318230,3.2388,154.45,154.41,15.57]
[1728971321436,1.2758,154.48,154.41,15.57]
[1728971321636,3.2388,154.45,154.41,15.57]
[1728971321838,1.2758,154.48,154.41,18.8094]
[1728971322039,16.8458,154.48,154.39,20.59]
[1728971322333,1.2717,154.47,154.39,15.57]
[1728971322640,15.57,154.46,154.37,23.8303]
[1728971323033,3.2395,154.42,154.37,23.8303]
[1728971323626,1.2717,154.47,154.39,15.57]
[1728971324542,3.239,154.44,154.39,18.8099]
[1728971325833,1.2717,154.47,154.39,15.57]
[1728971326136,1.2717,154.47,154.41,15.57]
[1728971326436,3.2386,154.46,154.41,18.8095]
[1728971328037,1.2758,154.48,154.41,15.57]
[1728971328244,3.2384,154.47,154.42,3.2393]
[1728971328938,36.3258,154.48,154.31,0.12502]
[1728971329137,15.57,154.39,154.31,0.12502]
[1728971329346,0.97529775,154.42,154.31,0.12502]
[1728971329347,15.57,154.37,154.31,0.12502]
[1728971329842,3.2411,154.34,154.31,0.12502]
[1728971330540,3.2406,154.36,154.31,0.12502]
[1728971330742,5.1,154.38,154.31,0.12502]
[1728971330938,0.9752093,154.37,154.31,0.12502]
[1728971331136,5.1,154.38,154.31,0.12502]
[1728971331340,0.97490719,154.37,154.31,0.12502]
[1728971331840,3.2407,154.36,154.31,0.12502]
[1728971332641,3.2406,154.37,154.31,0.12502]
[1728971332845,3.2406,154.37,154.31,15.69502]
[1728971334147,5.1,154.41,154.33,15.57]
[1728971334646,3.24,154.39,154.33,18.8111]
[1728971336735,3.24,154.39,154.31,5.22502]
[1728971336736,3.2406,154.36,154.31,5.22502]
[1728971336941,15.57,154.4,154.31,0.12502]
[1728971337145,0.97503458,154.39,154.31,0.12502]
[1728971338143,0.97503458,154.39,154.32,18.8113]
[1728971338343,20.67,154.41,154.32,18.8113]
[1728971338545,0.97501122,154.4,154.32,18.8113]
[1728971339446,3.2406,154.36,154.32,15.57]
[1728971339641,3.2406,154.36,154.32,5.1]
[1728971340046,15.57,154.39,154.32,5.1]
[1728971340248,0.97491616,154.38,154.32,5.1]
[1728971340749,0.97489278,154.37,154.32,5.1]
[1728971341051,3.2408,154.36,154.32,5.1]
[1728971341945,3.2404,154.37,154.32,5.1]
[1728971342247,15.57,154.39,154.32,5.1]
[1728971342549,3.2408,154.36,154.32,5.1]
[1728971342752,15.57,154.39,154.31,0.12502]
[1728971342950,0.97490741,154.38,154.31,0.12502]
[1728971343147,3.2409,154.35,154.31,0.12502]
[1728971343349,15.57,154.39,154.31,0.12502]
[1728971343546,15.57,154.37,154.31,0.12502]
[1728971343743,3.2409,154.35,154.31,0.12502]
[1728971346054,3.2414,154.32,154.31,0.12502]
[1728971349759,3.2413,154.33,154.31,0.12502]
[1728971350260,15.57,154.35,154.31,0.12502]
[1728971350461,3.2414,154.32,154.31,0.12502]
[1728971352364,15.57,154.35,154.31,0.12502]
[1728971352566,3.2411,154.34,154.31,0.12502]
[1728971352864,15.57,154.37,154.31,0.12502]
[1728971353064,3.2407,154.36,154.31,3.36652]
[1728971353267,3.2407,154.36,154.31,15.69502]
[1728971353461,3.2407,154.36,154.31,20.79502]
[1728971353963,3.2407,154.36,154.31,24.03662]
[1728971356065,3.2407,154.36,154.31,20.79502]
[1728971356263,3.2407,154.36,154.32,3.2413]
[1728971357057,5.1,154.38,154.32,3.2413]
[1728971357258,1.3782,154.4,154.32,3.19629392]
[1728971357457,1.3782,154.4,154.32,1.4054]
[1728971357670,1.3782,154.4,154.33,3.19175327]
[1728971357863,3.2403,154.38,154.34,3.241]
[1728971358058,3.2403,154.38,154.33,3.19175327]
[1728971359361,3.2403,154.38,154.33,6.43285327]
[1728971363775,3.2405,154.37,154.33,3.2411]
[1728971366768,5.16,154.41,154.34,3.2409]
[1728971366769,3.2402,154.38,154.34,3.2409]
[1728971368373,20.73,154.42,154.34,3.2409]
[1728971368582,3.2405,154.37,154.34,3.2409]
[1728971370177,3.2403,154.38,154.34,3.2409]
[1728971370377,15.57,154.42,154.36,3.2406]
[1728971370577,0.97541887,154.41,154.36,3.2406]
[1728971370877,3.2402,154.38,154.35,3.2408]
[1728971373372,3.2406,154.36,154.33,4.5554]
[1728971373680,3.2406,154.36,154.33,1.3144]
[1728971374478,3.2404,154.37,154.34,3.2409]
[1728971374670,6.57122,154.43,154.33,16.8844]
[1728971374878,16.54534244,154.42,154.33,16.8844]
[1728971375087,3.2404,154.37,154.34,3.2409]
[1728971375583,15.57,154.38,154.32,4.61782149]
[1728971375781,6.57122,154.43,154.31,0.12502]
[1728971375782,15.57,154.36,154.31,0.12502]
[1728971375973,15.57,154.34,154.31,0.12502]
[1728971376175,3.2414,154.32,154.31,0.12502]
[1728971377484,18.8114,154.32,154.31,0.12502]
[1728971377776,3.2424,154.28,154.25,0.12502]
[1728971378377,15.57,154.3,154.25,0.12502]
[1728971378574,3.2427,154.27,154.25,0.12502]
[1728971379284,3.2423,154.28,154.25,0.12502]
[1728971379783,15.57,154.3,154.25,0.12502]
[1728971379975,3.2427,154.27,154.25,0.12502]
[1728971381587,20.73,154.3,154.25,3.36782]
[1728971381588,8.402,154.3,154.25,3.36782]
[1728971382091,3.242,154.3,154.25,3.36782]
[1728971382287,3.2414,154.33,154.27,3.2425]
[1728971382485,5.16,154.34,154.27,3.2425]
[1728971382686,5.16,154.34,154.26,15.57]
[1728971382877,8.4011,154.34,154.29,3.242]
[1728971383481,3.2411,154.34,154.29,3.242]
[1728971384390,3.2409,154.35,154.3,3.2418]
[1728971386487,3.36542,154.37,154.33,3.2412]
[1728971386788,0.12502,154.37,154.33,3.2412]
[1728971388087,0.12502,154.37,154.32,8.41791571]
[1728971388291,0.12502,154.37,154.34,3.241]
[1728971388695,0.12502,154.37,154.33,3.2411]
[1728971388992,0.12502,154.37,154.33,15.57]
[1728971389984,0.12502,154.37,154.36,3.2406]
[1728971393204,3.2396,154.41,154.37,3.2404]
[1728971393894,3.2396,154.41,154.36,8.3206]
[1728971394484,0.12502,154.43,154.36,5.08]
[1728971395199,3.2396,154.41,154.36,8.3205]
[1728971396393,3.2396,154.41,154.37,3.2403]
[1728971398792,3.2395,154.42,154.38,3.2401]
[1728971399099,0.12502,154.43,154.37,18.2205]
[1728971399298,3.36422,154.43,154.39,3.2398]
[1728971401589,0.12502,154.43,154.39,3.2398]
[1728971402088,0.12502,154.43,154.4,8.33826973]
[1728971405796,0.12502,154.43,154.42,15.57]
[1728971405999,3.29739696,154.5,154.42,15.57]
[1728971406200,18.86739696,154.5,154.4,23.9172497]
[1728971406401,3.2389,154.45,154.4,27.1569497]
[1728971407301,3.2389,154.45,154.41,3.2395]
[1728971407501,15.57,154.48,154.41,5.08]
[1728971407697,1.4105,154.47,154.41,5.08]
[1728971408298,3.239,154.44,154.41,5.08]
[1728971409911,3.239,154.44,154.41,8.3195]
[1728971410509,1.4105,154.47,154.41,5.08]
[1728971410807,15.57,154.46,154.4,5.08]
[1728971411204,3.2395,154.41,154.4,5.08]
[1728971411401,15.57,154.46,154.4,5.08]
[1728971411604,3.2395,154.42,154.4,5.08]
[1728971411800,15.57,154.46,154.4,5.08]
[1728971412204,3.2389,154.45,154.4,5.08]
[1728971412405,15.57,154.46,154.4,5.08]
[1728971412601,15.57,154.44,154.37,0.12502]
[1728971413006,3.2401,154.39,154.37,0.12502]
[1728971414406,15.57,154.44,154.37,0.12502]
[1728971414808,3.2397,154.41,154.37,0.12502]
[1728971415110,15.57,154.44,154.37,0.12502]
[1728971415311,0.97656286,154.43,154.37,0.12502]
[1728971415703,15.57,154.44,154.37,0.12502]
[1728971416103,3.2394,154.42,154.38,3.2402]
[1728971416405,3.2394,154.42,154.37,0.12502]
[1728971416406,3.2394,154.42,154.37,15.69502]
[1728971417205,3.2392,154.43,154.38,3.2401]
[1728971417406,3.2392,154.43,154.39,5.08]
[1728971418901,3.2394,154.42,154.39,5.08]
[1728971420515,22.0605,154.47,154.39,5.08]
[1728971420716,3.239,154.44,154.39,8.3198]
[1728971421412,1.4105,154.47,154.39,20.65]
[1728971421613,3.2388,154.45,154.39,20.65]
[1728971422215,3.239,154.44,154.4,3.2397]
[1728971422717,3.2392,154.43,154.39,20.65]
[1728971422911,15.57,154.44,154.38,1.2787]
[1728971423113,15.57,154.44,154.38,4.98]
[1728971423318,3.2397,154.41,154.38,4.98]
[1728971423611,15.57,154.42,154.37,0.12502]
[1728971424612,3.2402,154.38,154.37,0.12502]
[1728971429720,18.8102,154.38,154.37,0.12502]
[1728971430018,15.57,154.38,154.31,5.10502]
[1728971430521,3.2409,154.35,154.31,5.10502]
[1728971431522,3.241,154.34,154.31,5.10502]
[1728971432619,15.57,154.4,154.32,3.22309813]
[1728971432822,0.97738754,154.39,154.32,3.22309813]
[1728971433223,3.2405,154.37,154.32,6.46439813]
[1728971434634,15.57,154.4,154.32,6.46439813]
[1728971434926,3.2406,154.36,154.32,6.46439813]
[1728971436823,15.57,154.38,154.31,0.12502]
[1728971437029,6.2671,154.41,154.31,0.12502]
[1728971437030,15.57,154.36,154.31,0.12502]
[1728971438723,15.57,154.38,154.31,0.12502]
[1728971438923,3.241,154.35,154.31,0.12502]
[1728971439829,3.241,154.35,154.31,3.36652]
[1728971440225,3.241,154.35,154.31,0.12502]
[1728971442129,20.55,154.38,154.31,0.12502]
[1728971442329,15.57,154.36,154.31,0.12502]
[1728971442534,15.57,154.34,154.31,0.12502]
[1728971442839,15.57,154.34,154.25,2.74642]
[1728971442840,3.2422,154.29,154.26,4.98]
[1728971443236,20.55,154.34,154.26,4.98]
[1728971444442,3.2423,154.29,154.26,4.98]
[1728971444642,15.57,154.33,154.26,4.98]
[1728971445638,3.2424,154.28,154.26,4.98]
[1728971451241,4.98,154.34,154.26,4.98]
[1728971451436,4.9,154.34,154.26,4.98]
[1728971451739,4.9,154.34,154.26,7.6815]
[1728971451944,3.2418,154.31,154.27,3.2424]
[1728971455850,3.2418,154.31,154.28,9.97]
[1728971458146,3.2413,154.33,154.29,13.212]
[1728971461247,13.2113,154.33,154.29,3.242]
[1728971464056,13.2113,154.33,154.28,13.2122]
[1728971464253,3.2411,154.34,154.29,9.97]
[1728971464455,10.09502,154.37,154.32,9.97]
[1728971464646,9.97,154.35,154.3,14.87]
[1728971465352,9.97,154.34,154.3,4.9]
[1728971466553,3.2414,154.33,154.3,4.9]
[1728971466866,9.97,154.32,154.28,14.87]
[1728971467060,3.2417,154.31,154.28,14.87]
[1728971467759,3.2417,154.31,154.28,18.1122]
[1728971467962,9.97,154.31,154.28,4.9]
[1728971468159,3.2421,154.29,154.26,17.5715]
[1728971468564,3.2421,154.29,154.26,20.8141]
[1728971468861,9.97,154.35,154.28,9.97]
[1728971469055,0.12502,154.37,154.32,9.97]
[1728971469257,10.09502,154.37,154.32,9.97]
[1728971469662,0.12502,154.37,154.33,9.97]
[1728971470163,10.09502,154.37,154.32,9.97]
[1728971471464,3.2409,154.35,154.32,9.97]
[1728971473064,3.2406,154.36,154.32,13.2114]
[1728971473262,0.12502,154.37,154.32,9.97]
[1728971473569,10.09502,154.37,154.32,9.97]
[1728971473955,3.2408,154.36,154.32,13.2114]
[1728971474467,3.2409,154.35,154.3,8.1417]
[1728971474766,3.2409,154.35,154.32,9.97]
[1728971476059,0.12502,154.37,154.33,9.97]
[1728971476361,3.36552,154.37,154.33,13.2111]
[1728971477355,3.2406,154.36,154.33,13.2111]
[1728971480760,0.12502,154.37,154.35,13.2107]
[1728971480961,0.12502,154.37,154.36,9.97]
[1728971484064,3.2397,154.41,154.37,3.2404]
[1728971484263,3.2397,154.41,154.37,13.2104]
[1728971485758,9.97,154.42,154.37,9.97]
[1728971485961,3.2398,154.4,154.37,9.97]
[1728971486162,3.2398,154.4,154.36,13.2105]
[1728971486873,0.12502,154.43,154.39,9.97]
[1728971487077,0.12502,154.43,154.4,9.97]
[1728971488772,0.12502,154.43,154.4,13.2096]
[1728971488968,0.12502,154.43,154.41,9.97]
[1728971489172,0.12502,154.43,154.41,13.2094]
[1728971492072,0.12502,154.43,154.41,16.50463845]
[1728971493880,0.12502,154.43,154.42,4.88]
[1728971500295,3.2393,154.42,154.41,3.29523845]
[1728971500490,3.2393,154.42,154.41,9.97]
[1728971500793,0.12502,154.43,154.41,9.97]
[1728971500992,0.12502,154.43,154.42,9.97]
[1728971503294,0.12502,154.43,154.41,14.85]
[1728971506801,0.12502,154.43,154.41,9.97]
[1728971510602,3.36422,154.43,154.41,9.97]
[1728971511900,0.12502,154.43,154.42,9.97]
[1728971513606,0.12502,154.43,154.4,8.1195]
[1728971513801,0.12502,154.43,154.42,9.97]
[1728971514604,0.12502,154.43,154.42,13.2093]
[1728971520210,0.12502,154.43,154.41,3.28259687]
[1728971520409,0.12502,154.43,154.41,13.25259687]
[1728971520611,0.12502,154.43,154.41,3.28259687]
[1728971520911,3.36432,154.43,154.41,13.25259687]
[1728971521109,0.12502,154.43,154.41,16.49209687]
[1728971522813,0.12502,154.43,154.42,9.97]
[1728971523114,3.36412,154.43,154.42,9.97]
[1728971528014,0.12502,154.43,154.42,9.97]
[1728971528615,3.36412,154.43,154.42,9.97]
[1728971529017,0.12502,154.43,154.42,9.97]
[1728971530424,0.12502,154.43,154.42,13.2093]
[1728971532924,3.2385,154.46,154.42,9.97]
[1728971533117,3.2384,154.47,154.43,9.97]
[1728971533523,3.2384,154.47,154.44,4.88]
[1728971534223,3.2384,154.47,154.45,9.97]
[1728971534421,0.12502,154.49,154.46,9.97]
[1728971536126,3.2382,154.48,154.46,9.97]
[1728971536426,10.09502,154.49,154.44,14.85]
[1728971536622,3.2384,154.47,154.44,4.88]
[1728971536823,3.2384,154.47,154.43,13.209]
[1728971537127,9.97,154.45,154.4,4.88]
[1728971537424,9.97,154.46,154.41,9.97]
[1728971537624,5.00502,154.49,154.41,13.2095]
[1728971537625,3.2388,154.45,154.41,13.2095]
[1728971537815,3.2388,154.45,154.43,9.97]
[1728971539022,3.2388,154.45,154.4,4.88]
[1728971539023,0.12502,154.49,154.44,9.97]
[1728971539229,0.12502,154.49,154.45,9.97]
[1728971540330,3.2381,154.48,154.45,9.97]
[1728971541220,0.12502,154.49,154.45,9.97]
[1728971541423,0.12502,154.49,154.46,3.2384]
[1728971541628,0.12502,154.49,154.47,9.97]
[1728971543233,0.12502,154.49,154.46,9.97]
[1728971543935,3.2381,154.48,154.46,9.97]
[1728971546132,3.2381,154.48,154.44,8.1188]
[1728971546324,10.09502,154.49,154.39,5.93384373]
[1728971546529,9.97,154.47,154.43,9.97]
[1728971546736,10.09502,154.49,154.43,9.97]
[1728971547328,3.2384,154.47,154.43,13.2091]
[1728971547632,3.2384,154.47,154.44,9.97]
[1728971548029,3.2384,154.47,154.44,13.2089]
[1728971548237,3.2384,154.47,154.45,9.97]
[1728971550044,0.12502,154.49,154.41,1.29]
[1728971550235,10.09502,154.49,154.44,9.97]
[1728971551038,3.2385,154.47,154.43,3.239]
[1728971551340,3.2385,154.47,154.44,9.97]
[1728971553336,0.12502,154.49,154.46,3.2384]
[1728971553533,0.12502,154.49,154.47,9.97]
[1728971553934,0.12502,154.49,154.47,13.2082]
[1728971554232,0.12502,154.49,154.48,9.97]
[1728971554638,3.2369,154.54,154.5,3.2376]
[1728971554845,3.2369,154.54,154.5,13.2076]
[1728971555432,3.36182,154.55,154.51,3.2374]
[1728971555637,0.12502,154.55,154.51,3.2374]
[1728971555838,0.12502,154.55,154.52,9.97]
[1728971556338,0.12502,154.55,154.52,13.2072]
[1728971556530,0.12502,154.55,154.52,9.97]
[1728971557334,0.12502,154.55,154.54,9.97]
[1728971558936,10.09502,154.55,154.51,4.88]
[1728971559143,3.237,154.54,154.51,4.88]
[1728971560947,10.09502,154.55,154.5,9.97]
[1728971561142,9.97,154.54,154.49,4.88]
[1728971561341,0.12502,154.55,154.47,3.20029489]
[1728971561342,9.97,154.52,154.47,9.97]
[1728971561536,3.2379,154.49,154.46,14.85]
[1728971561847,9.97,154.49,154.45,4.88]
[1728971562238,3.2382,154.48,154.45,14.85]
[1728971563132,3.2379,154.49,154.47,9.97]
[1728971563332,6.1953,154.53,154.48,9.97]